bitfinex-derivatives/quotes_ETHF0:USTF0_20260121
["timestamp","ask_amount","ask_price","bid_price","bid_amount"]
[1768993358338,0.91372995,2963.0,2962.2,0.14512719]
[1768993358544,0.00505825,2963.1,2962.2,0.14512719]
[1768993358743,0.91380441,2963.0,2962.2,0.14512719]
[1768993358937,0.00505825,2963.1,2962.2,0.14512719]
[1768993359145,0.9138044,2963.0,2962.2,0.14512719]
[1768993359343,0.00505825,2963.1,2962.2,0.14512719]
[1768993359639,0.91391747,2963.0,2962.2,0.14512719]
[1768993359837,0.00505825,2963.1,2962.2,0.14512719]
[1768993360037,0.91401055,2963.0,2962.2,0.14512719]
[1768993360239,0.00505825,2963.1,2962.2,0.14512719]
[1768993360434,0.91399809,2963.0,2962.2,0.14512719]
[1768993360638,0.00505825,2963.1,2962.2,0.14512719]
[1768993360838,0.91406069,2963.0,2962.2,0.14512719]
[1768993361134,0.00505825,2963.1,2962.2,0.14512719]
[1768993361333,0.91405845,2963.0,2962.2,0.14512719]
[1768993361535,0.00505825,2963.1,2962.2,0.14512719]
[1768993361735,0.91420152,2963.0,2962.2,0.14512719]
[1768993361935,0.00505825,2963.1,2962.2,0.14512719]
[1768993362237,0.9142026,2963.0,2962.2,0.14512719]
[1768993362437,0.00505825,2963.1,2962.2,0.14512719]
[1768993362630,0.91437585,2963.0,2962.2,0.14512719]
[1768993362843,0.00505825,2963.1,2962.2,0.14512719]
[1768993363044,0.91429851,2963.0,2962.2,0.14512719]
[1768993363241,0.00505825,2963.1,2962.2,0.14512719]
[1768993363444,0.91449778,2963.0,2962.2,0.14512719]
[1768993363746,0.00505825,2963.1,2962.3,1.26097065]
[1768993363946,0.9145117,2963.0,2962.3,1.26097065]
[1768993364145,0.00505825,2963.1,2962.3,1.26097065]
[1768993364345,0.00402198,2963.4,2962.6,1.26097065]
[1768993364536,0.91483044,2963.3,2962.6,1.26097065]
[1768993364846,0.00402198,2963.4,2962.6,1.26097065]
[1768993365048,0.91480955,2963.3,2962.6,1.26097065]
[1768993365248,0.00402198,2963.4,2962.6,0.14512719]
[1768993365547,0.91474365,2963.3,2962.7,0.00505825]
[1768993365746,0.91474365,2963.2,2962.7,0.00505825]
[1768993365946,0.00402198,2963.4,2962.7,0.00505825]
[1768993366146,0.91501959,2963.3,2962.7,0.00505825]
[1768993366357,0.91501959,2963.2,2962.7,0.00505825]
[1768993366549,0.00402198,2963.4,2962.7,0.00505825]
[1768993366749,0.91528879,2963.3,2962.7,0.00505825]
[1768993366950,0.91528879,2963.2,2962.7,0.00505825]
[1768993367151,0.00402198,2963.4,2962.7,0.00505825]
[1768993367351,0.91528879,2963.3,2962.7,0.00505825]
[1768993367554,0.91528879,2963.2,2962.7,0.00505825]
[1768993367752,0.00402198,2963.4,2962.7,0.00505825]
[1768993368051,0.91552704,2963.3,2962.7,0.00505825]
[1768993368254,0.91552704,2963.2,2962.7,0.00505825]
[1768993368454,0.00402198,2963.4,2962.7,0.00505825]
[1768993368648,0.91588203,2963.3,2962.7,0.00505825]
[1768993368848,0.91588203,2963.2,2962.7,0.00505825]
[1768993369049,0.00402198,2963.4,2962.7,0.00505825]
[1768993369249,0.91587817,2963.3,2962.7,0.00505825]
[1768993369453,0.91587817,2963.2,2962.7,0.00505825]
[1768993369653,0.00402198,2963.4,2962.7,0.00505825]
[1768993369852,0.91578563,2963.3,2962.7,0.00505825]
[1768993370054,0.91578563,2963.2,2962.7,0.00505825]
[1768993370249,0.91578563,2963.1,2962.7,0.00505825]
[1768993370452,0.9157197,2963.0,2961.9,1.26258215]
[1768993370653,1.11920409,2963.3,2961.9,1.26258215]
[1768993370855,0.91571903,2963.2,2961.9,1.26258215]
[1768993371052,0.91571903,2963.1,2961.9,1.26258215]
[1768993371253,0.91571903,2963.0,2961.9,1.26258215]
[1768993371456,1.11920409,2963.3,2962.2,0.00505825]
[1768993371655,0.91571573,2963.2,2962.2,0.00505825]
[1768993371854,0.91571573,2963.1,2962.2,0.00505825]
[1768993372155,0.91571573,2963.0,2962.2,0.00505825]
[1768993372353,1.11920409,2963.3,2962.2,0.00505825]
[1768993372657,0.91571566,2963.2,2962.2,0.00505825]
[1768993372860,0.91571566,2963.1,2962.2,0.00505825]
[1768993373060,0.91571566,2963.0,2962.2,0.00505825]
[1768993373257,1.11920409,2963.3,2962.2,0.00505825]
[1768993373463,0.91571003,2963.2,2962.2,0.00505825]
[1768993373658,0.91571003,2963.1,2962.2,0.00505825]
[1768993373866,0.91571003,2963.0,2962.2,0.00505825]
[1768993374169,1.11920409,2963.3,2962.2,0.00505825]
[1768993374370,0.91572916,2963.2,2962.2,0.00505825]
[1768993374559,0.91572916,2963.1,2962.2,0.00505825]
[1768993374762,0.91572916,2963.0,2962.2,0.00505825]
[1768993374963,1.11920409,2963.3,2962.2,0.00505825]
[1768993375166,0.91573296,2963.2,2962.2,0.00505825]
[1768993375364,0.91573296,2963.1,2962.2,0.00505825]
[1768993375565,0.91573296,2963.0,2962.2,0.00505825]
[1768993375773,1.11920409,2963.3,2962.2,0.00505825]
[1768993376072,0.91574426,2963.2,2962.2,0.00505825]
[1768993376272,0.91574426,2963.1,2962.2,0.00505825]
[1768993376471,0.91574426,2963.0,2962.2,0.00505825]
[1768993376666,1.11920409,2963.3,2962.2,0.00505825]
[1768993376865,0.91573294,2963.2,2962.2,0.00505825]
[1768993377068,0.91573294,2963.1,2962.2,0.00505825]
[1768993377267,0.91573294,2963.0,2962.2,0.00505825]
[1768993377473,1.11920409,2963.3,2962.2,0.00505825]
[1768993377674,0.91575803,2963.2,2962.2,0.00505825]
[1768993377972,0.91575803,2963.1,2962.2,0.00505825]
[1768993378275,1.11584346,2962.9,2962.2,0.00505825]
[1768993378572,0.91575803,2962.8,2961.6,0.14616201]
[1768993378772,0.91575803,2962.7,2961.6,0.14616201]
[1768993378967,1.11584346,2962.9,2961.6,0.14616201]
[1768993379167,0.91566291,2962.8,2961.6,0.14616201]
[1768993379368,0.91566291,2962.7,2961.6,0.14616201]
[1768993379568,1.11584346,2962.9,2961.6,0.14616201]
[1768993379769,0.91562343,2962.8,2961.9,0.00505825]
[1768993379969,0.91562343,2962.7,2961.9,0.00505825]
[1768993380170,0.91559252,2962.6,2961.9,0.00505825]
[1768993380368,1.25594742,2962.9,2961.9,0.00505825]
[1768993380569,0.14010396,2962.7,2961.2,1.26200547]
[1768993380872,1.11584346,2962.3,2960.9,1.11584346]
[1768993381068,1.11584346,2962.0,2960.8,0.14616201]
[1768993381774,0.00505825,2961.7,2961.1,0.00505825]
[1768993402093,0.15357474,2961.7,2960.7,0.00245022]
[1768993406499,1.05691306,2961.6,2960.7,0.00245022]
[1768993406698,0.14851649,2961.6,2960.7,0.00245022]
[1768993406894,0.00505825,2961.7,2960.7,0.00245022]
[1768993407493,0.90875656,2961.6,2960.7,0.00245022]
[1768993407693,0.00505825,2961.7,2960.7,0.00245022]
[1768993407896,0.90875123,2961.6,2960.7,0.00245022]
[1768993408199,0.00505825,2961.7,2960.7,0.13866076]
[1768993410994,1.96933757,2962.4,2960.7,0.13866076]
[1768993411298,1.22144494,2962.3,2960.7,0.13866076]
[1768993411496,0.90960822,2962.2,2960.7,0.13866076]
[1768993411696,0.90960822,2962.1,2960.7,0.13866076]
[1768993411994,0.90960822,2962.0,2960.7,0.13866076]
[1768993412194,0.90960822,2961.9,2960.7,0.13866076]
[1768993412388,1.96933757,2962.4,2960.7,0.13866076]
[1768993412591,1.2215195,2962.3,2960.7,0.13866076]
[1768993412791,1.82082108,2962.5,2960.7,0.13866076]
[1768993412792,0.90966474,2962.2,2960.7,0.13866076]
[1768993412989,0.90966474,2962.1,2960.7,0.13866076]
[1768993413202,2.6876852,2962.6,2960.7,0.13866076]
[1768993413400,1.22157115,2962.5,2960.7,0.13866076]
[1768993413592,0.90970584,2962.5,2960.7,0.13866076]
[1768993413793,0.90970584,2962.4,2960.7,0.13866076]
[1768993414003,0.90970584,2962.3,2960.7,0.13866076]
[1768993414198,0.90970584,2962.2,2960.7,0.13866076]
[1768993414497,0.90970584,2962.1,2960.7,0.13866076]
[1768993414695,2.6876852,2962.6,2960.7,0.13866076]
[1768993414998,1.22152413,2962.5,2961.0,0.13621054]
[1768993415204,0.90969995,2962.4,2961.0,0.13621054]
[1768993415397,0.90969995,2962.3,2961.0,0.13621054]
[1768993415596,0.90969995,2962.2,2961.0,0.13621054]
[1768993415902,0.86686412,2962.6,2961.0,0.13621054]
[1768993416102,1.22121446,2962.5,2961.0,0.13621054]
[1768993416304,0.90944167,2962.4,2961.0,0.13621054]
[1768993416492,1.82082108,2962.9,2961.6,0.13621054]
[1768993416802,1.82082108,2963.3,2961.8,0.13621054]
[1768993417095,0.31185042,2963.2,2961.8,0.13621054]
[1768993417299,1.82484306,2963.4,2961.8,0.13621054]
[1768993417505,0.31171209,2963.3,2961.8,0.13621054]
[1768993417694,0.00402198,2963.4,2961.8,0.13621054]
[1768993417896,0.00505825,2962.8,2961.8,0.13621054]
[1768993444432,0.00402198,2963.4,2961.8,0.13621054]
[1768993444732,0.90583558,2963.3,2961.8,0.13621054]
[1768993444926,0.90583558,2963.2,2961.8,0.13621054]
[1768993445120,0.00402198,2963.4,2961.8,0.13621054]
[1768993445326,0.90150886,2963.3,2961.8,0.13621054]
[1768993445526,0.90150886,2963.2,2961.8,0.13621054]
[1768993445728,0.00402198,2963.4,2961.8,0.13621054]
[1768993445924,0.90145052,2963.3,2961.8,0.13621054]
[1768993446125,0.90145052,2963.2,2961.8,0.13621054]
[1768993446434,0.90145052,2963.1,2961.8,0.13621054]
[1768993446736,0.00402198,2963.4,2961.8,0.13621054]
[1768993446936,0.9019689,2963.3,2961.8,0.13621054]
[1768993447136,0.9019689,2963.2,2961.8,0.13621054]
[1768993447338,0.00402198,2963.4,2961.8,0.13621054]
[1768993447339,0.9019689,2963.1,2961.8,0.13621054]
[1768993447636,0.00402198,2963.4,2961.8,0.13621054]
[1768993447841,0.90193356,2963.3,2961.8,0.13621054]
[1768993448138,0.90193356,2963.2,2961.8,0.13621054]
[1768993448439,0.90193356,2963.1,2961.8,0.13621054]
[1768993448738,0.00402198,2963.4,2961.8,0.13621054]
[1768993448938,0.90184638,2963.3,2962.2,1.25640006]
[1768993449139,0.90184638,2963.2,2962.2,1.25640006]
[1768993449440,0.00402198,2963.4,2962.2,1.25640006]
[1768993449637,0.90177189,2963.3,2962.2,1.25640006]
[1768993449838,0.90177189,2963.2,2962.2,1.25640006]
[1768993450038,0.00402198,2963.4,2962.2,1.25640006]
[1768993450238,0.90177189,2963.3,2962.2,1.25640006]
[1768993450542,0.90177189,2963.2,2962.3,0.14104411]
[1768993450743,0.00402198,2963.4,2962.3,0.14104411]
[1768993450944,0.00505825,2963.0,2962.3,0.14104411]
[1768993456442,0.00505825,2963.0,2962.0,1.26461418]
[1768993456645,1.11535595,2962.7,2961.7,2.99979176]
[1768993456838,1.11535595,2962.7,2961.6,0.14925823]
[1768993458551,1.1204142,2963.0,2961.6,1.26461418]
[1768993459151,1.1204142,2963.0,2961.7,0.14925823]
[1768993459746,0.00505825,2963.0,2961.7,0.14925823]
[1768993462350,0.14947234,2963.0,2961.5,3.00485001]
[1768993462545,1.26482829,2963.0,2961.6,1.11535595]
[1768993466156,1.26482829,2963.0,2961.7,0.14925823]
[1768993466352,0.00505825,2963.0,2961.9,1.11535595]
[1768993467856,0.00505825,2963.0,2962.0,0.14925823]
[1768993485571,0.00505825,2963.0,2961.6,1.25881633]
[1768993485572,1.1204142,2963.0,2961.6,1.25881633]
[1768993485766,1.1204142,2963.0,2961.7,0.14346038]
[1768993499387,1.26642178,2963.0,2961.7,0.14346038]
[1768993501091,0.14600758,2962.9,2961.5,0.00505825]
[1768993501395,0.14600758,2962.6,2961.5,0.00505825]
[1768993503294,0.14600758,2962.9,2961.5,1.1204142]
[1768993503587,0.00505825,2963.0,2961.8,1.11535595]
[1768993503793,0.00505825,2963.0,2962.1,1.11535595]
[1768993505793,0.00505825,2963.0,2961.9,1.11535595]
[1768993506392,0.00505825,2963.0,2961.9,1.25328592]
[1768993508903,0.00505825,2963.0,2961.9,0.13792997]
[1768993514404,0.15106583,2963.0,2961.5,0.14298822]
[1768993520502,0.15106583,2963.0,2961.5,0.00505825]
[1768993520712,0.14963265,2962.0,2960.7,0.13858723]
[1768993520902,0.14963265,2962.0,2960.7,0.00245022]
[1768993521200,0.14963265,2962.4,2960.7,0.13858723]
[1768993521407,0.14963265,2962.8,2960.7,0.13858723]
[1768993521708,0.14963265,2962.8,2961.5,0.00505825]
[1768993530915,0.00505825,2963.0,2961.5,0.14119526]
[1768993535919,0.1546909,2963.0,2961.5,0.00505825]
[1768993536719,1.27029358,2963.0,2961.5,0.00505825]
[1768993537319,0.14963265,2962.9,2961.5,0.00505825]
[1768993542015,0.14963265,2962.5,2960.7,0.13858723]
[1768993543220,0.14963265,2962.5,2961.3,0.00505825]
[1768993544915,0.14963265,2962.9,2961.3,0.14119526]
[1768993547632,0.00505825,2963.0,2961.3,0.14119526]
[1768993550030,0.14441354,2963.0,2961.3,0.14119526]
[1768993551928,0.00505825,2963.0,2961.3,0.14119526]
[1768993554028,0.00505825,2963.0,2961.7,0.14067769]
[1768993570250,0.00402198,2963.4,2962.1,0.14237172]
[1768993570952,0.00402198,2963.4,2962.6,1.11504526]
[1768993571957,0.00402198,2963.4,2962.6,1.25741698]
[1768993575254,0.00402198,2963.4,2962.7,0.14237172]
[1768993588569,0.14092348,2964.3,2963.2,1.11504526]
[1768993588956,0.14092348,2964.3,2963.5,0.00505825]
[1768993589566,0.14362614,2964.3,2963.5,0.00745544]
[1768993590258,0.00505825,2964.2,2963.5,0.00745544]
[1768993593571,1.12010351,2964.2,2963.5,0.00745544]
[1768993596777,0.00505825,2964.2,2963.5,0.00745544]
[1768993611186,0.00505825,2964.2,2961.8,0.27657134]
[1768993611187,0.16866369,2964.1,2962.7,0.17532955]
[1768993611400,1.11504526,2963.9,2962.7,0.17532955]
[1768993612189,1.11504526,2963.9,2962.7,0.17933151]
[1768993612486,0.16866369,2964.1,2962.7,1.29437677]
[1768993613085,0.16866369,2964.1,2963.1,0.00505825]
[1768993615188,1.11504526,2963.9,2963.1,0.00505825]
[1768993615387,0.00505825,2964.2,2962.7,0.00400196]
[1768993615388,1.28370895,2963.6,2962.7,0.00400196]
[1768993617590,0.19027295,2963.5,2962.7,0.00400196]
[1768993621092,1.30531821,2963.9,2962.7,0.00400196]
[1768993621486,1.30531821,2963.9,2963.0,0.00505825]
[1768993625896,0.19027295,2963.8,2963.0,0.00505825]
[1768993626395,1.11504526,2963.7,2963.0,0.00505825]
[1768993628898,0.19027295,2963.8,2963.0,0.00505825]
[1768993630192,1.31037646,2964.2,2963.0,0.00505825]
[1768993630494,0.1953312,2964.2,2963.0,1.12010351]
[1768993630697,0.1953312,2964.2,2963.0,0.00505825]
[1768993631197,1.82263467,2964.0,2963.0,0.00505825]
[1768993631400,0.90424356,2963.9,2963.1,1.11504526]
[1768993631696,0.90424356,2963.8,2963.1,1.11504526]
[1768993631896,0.00505825,2964.2,2963.0,0.00505825]
[1768993632096,0.90435594,2964.1,2963.0,0.00505825]
[1768993632293,0.90435594,2964.0,2963.0,0.00505825]
[1768993632505,0.1953312,2964.2,2963.0,0.00505825]
[1768993632800,0.90238549,2964.1,2963.0,0.00505825]
[1768993632996,0.90238549,2964.0,2963.0,0.00505825]
[1768993633196,0.1953312,2964.2,2963.0,0.00505825]
[1768993633498,0.90268617,2964.1,2963.0,0.00505825]
[1768993633694,0.90268617,2964.0,2963.0,0.00505825]
[1768993633895,0.1953312,2964.2,2963.0,0.00505825]
[1768993634099,0.90270476,2964.1,2963.0,0.00505825]
[1768993634293,0.90270476,2964.0,2963.0,0.00505825]
[1768993634598,0.1953312,2964.2,2963.0,0.00505825]
[1768993634792,0.90293159,2964.1,2963.0,0.00505825]
[1768993634993,0.90293159,2964.0,2963.0,0.00505825]
[1768993635188,0.1953312,2964.2,2963.0,0.00505825]
[1768993635395,0.90306319,2964.1,2963.0,0.00505825]
[1768993635594,0.90306319,2964.0,2963.0,0.00505825]
[1768993635795,0.1953312,2964.2,2963.0,0.00505825]
[1768993635996,0.90306461,2964.1,2963.0,0.00505825]
[1768993636199,0.90306461,2964.0,2963.0,0.00505825]
[1768993636497,0.1953312,2964.2,2963.0,0.00505825]
[1768993636703,0.90317105,2964.1,2963.0,0.00505825]
[1768993636900,0.90317105,2964.0,2963.0,0.00505825]
[1768993637099,0.90317105,2963.9,2963.0,0.00505825]
[1768993637297,0.1953312,2964.2,2963.0,0.00505825]
[1768993637602,0.90326534,2964.1,2963.0,0.00505825]
[1768993637795,0.90326534,2964.0,2963.0,0.00505825]
[1768993638100,0.90326534,2963.9,2963.0,0.00505825]
[1768993638300,0.1953312,2964.2,2963.0,0.00505825]
[1768993638500,0.90334767,2964.1,2963.0,0.00505825]
[1768993638804,0.90334767,2964.0,2963.0,0.00505825]
[1768993639104,0.90334767,2963.9,2963.0,0.00505825]
[1768993639302,0.90334767,2963.8,2963.0,0.00505825]
[1768993639505,0.1953312,2964.2,2963.0,0.00505825]
[1768993639706,0.90342027,2964.1,2963.0,0.00505825]
[1768993639896,0.90342027,2964.0,2963.0,0.00505825]
[1768993640098,0.90342027,2963.9,2963.0,0.00505825]
[1768993640401,0.90342027,2963.8,2963.0,0.00505825]
[1768993640699,0.1953312,2964.2,2963.0,0.00505825]
[1768993640900,0.90379473,2964.1,2963.0,0.00505825]
[1768993641094,0.90379473,2964.0,2963.0,0.00505825]
[1768993641294,0.90379473,2963.9,2963.0,0.00505825]
[1768993641498,0.90379473,2963.8,2963.0,0.00505825]
[1768993641690,0.22424856,2964.1,2963.0,0.00505825]
[1768993641894,0.90387463,2964.0,2963.0,0.00505825]
[1768993642113,0.90387463,2963.9,2963.0,0.00505825]
[1768993642314,0.90387463,2963.8,2963.0,0.00505825]
[1768993642602,0.22424856,2964.1,2963.0,0.00505825]
[1768993642804,0.90401941,2964.0,2963.0,0.00505825]
[1768993643004,0.90401941,2963.9,2963.0,0.00505825]
[1768993643203,0.90401941,2963.8,2963.0,0.00505825]
[1768993643402,0.22424856,2964.1,2963.0,0.00505825]
[1768993643701,0.90405193,2964.0,2963.0,0.00505825]
[1768993643894,0.90405193,2963.9,2963.0,0.00505825]
[1768993644095,0.90405193,2963.8,2963.0,0.00505825]
[1768993644290,0.22424856,2964.1,2963.0,0.00505825]
[1768993644493,0.90428545,2964.0,2963.0,0.00505825]
[1768993644702,0.90428545,2963.9,2963.0,0.00505825]
[1768993644896,0.90428545,2963.8,2963.0,0.00505825]
[1768993645097,0.22424856,2964.1,2963.0,0.00505825]
[1768993645297,0.9042945,2964.0,2963.0,0.00505825]
[1768993645600,0.9042945,2963.9,2963.0,0.00505825]
[1768993645804,0.9042945,2963.8,2963.0,0.00505825]
[1768993646004,0.22424856,2964.1,2963.0,0.00505825]
[1768993646203,0.90431568,2964.0,2963.0,0.00505825]
[1768993646405,0.90431568,2963.9,2963.0,0.00505825]
[1768993646706,0.90431568,2963.8,2963.0,0.00505825]
[1768993647004,0.22424856,2964.1,2963.0,0.00505825]
[1768993647307,0.90433711,2964.0,2963.0,0.00505825]
[1768993647500,0.90433711,2963.9,2963.0,0.00505825]
[1768993647707,0.22424856,2964.1,2963.0,0.00505825]
[1768993647896,0.90435558,2964.0,2963.0,0.00505825]
[1768993648093,0.90435558,2963.9,2963.0,0.00505825]
[1768993648297,0.22424856,2964.1,2963.0,0.00505825]
[1768993648508,0.90437015,2964.0,2963.0,0.00505825]
[1768993648704,0.90437015,2963.9,2963.0,0.00505825]
[1768993648911,0.22424856,2964.1,2963.0,0.00505825]
[1768993649103,0.90437261,2964.0,2963.0,0.00505825]
[1768993649303,0.90437261,2963.9,2963.0,0.00505825]
[1768993649506,0.22424856,2964.1,2963.0,0.00505825]
[1768993649803,0.90438649,2964.0,2963.0,0.00505825]
[1768993650002,0.90438649,2963.9,2963.0,0.00505825]
[1768993650303,0.22424856,2964.1,2963.0,0.00505825]
[1768993650504,0.90440117,2964.0,2963.0,0.00505825]
[1768993650704,0.90440117,2963.9,2963.0,0.00505825]
[1768993650903,0.22424856,2964.1,2963.0,0.00505825]
[1768993651105,0.90440221,2964.0,2963.0,0.00505825]
[1768993651304,0.90440221,2963.9,2963.0,0.00505825]
[1768993651612,0.22424856,2964.1,2963.0,0.00505825]
[1768993651811,0.90441919,2964.0,2963.0,0.00505825]
[1768993652013,0.90441919,2963.9,2963.0,0.00505825]
[1768993652212,0.22424856,2964.1,2963.0,0.00505825]
[1768993652415,0.90443329,2964.0,2963.0,0.00505825]
[1768993652605,0.90443329,2963.9,2963.0,0.00505825]
[1768993652911,0.22424856,2964.1,2963.0,0.00505825]
[1768993653111,0.9044252,2964.0,2963.0,0.00505825]
[1768993653312,0.9044252,2963.9,2963.0,0.00505825]
[1768993653614,0.22424856,2964.1,2963.0,0.00505825]
[1768993653813,0.90443167,2964.0,2963.0,0.00505825]
[1768993654012,0.90443167,2963.9,2963.0,0.00505825]
[1768993654215,0.22424856,2964.1,2963.0,0.00505825]
[1768993654415,0.90445283,2964.0,2963.0,0.00505825]
[1768993654616,0.90445283,2963.9,2963.0,0.00505825]
[1768993654814,0.22424856,2964.1,2963.0,0.00505825]
[1768993655015,0.90445286,2964.0,2963.0,0.00505825]
[1768993655209,0.90445286,2963.9,2963.0,0.00505825]
[1768993655409,0.22424856,2964.1,2963.0,0.00505825]
[1768993655611,0.90446381,2964.0,2963.0,0.00505825]
[1768993655908,0.90446381,2963.9,2963.0,0.00505825]
[1768993656108,0.22424856,2964.1,2963.0,0.00505825]
[1768993656309,0.90446384,2964.0,2963.0,0.00505825]
[1768993656504,0.22424856,2964.1,2963.0,0.00505825]
[1768993656716,0.90447553,2964.0,2963.0,0.00505825]
[1768993656910,0.90447553,2963.9,2963.0,0.00505825]
[1768993657110,0.22424856,2964.1,2963.0,0.00505825]
[1768993657311,0.9044701,2964.0,2963.0,0.00505825]
[1768993657520,0.9044701,2963.9,2963.0,0.00505825]
[1768993657816,0.22424856,2964.1,2963.0,0.00505825]
[1768993658019,0.90447827,2964.0,2963.0,0.00505825]
[1768993658212,0.90447827,2963.9,2963.0,0.00505825]
[1768993658511,0.22424856,2964.1,2963.0,0.00505825]
[1768993658711,0.90447756,2964.0,2963.0,0.00505825]
[1768993658914,0.90447756,2963.9,2963.0,0.00505825]
[1768993659114,0.22424856,2964.1,2963.0,0.00505825]
[1768993659415,0.9042539,2964.0,2963.0,0.00505825]
[1768993659614,0.9042539,2963.9,2963.0,0.00505825]
[1768993659814,0.22424856,2964.1,2963.0,0.00505825]
[1768993660118,0.90415996,2964.0,2963.0,0.00505825]
[1768993660314,0.90415996,2963.9,2963.0,0.00505825]
[1768993660515,0.22424856,2964.1,2963.0,0.00505825]
[1768993660815,0.90413742,2964.0,2963.0,0.00505825]
[1768993661015,0.90413742,2963.9,2963.0,0.00505825]
[1768993661217,0.9049489,2963.8,2963.0,0.00505825]
[1768993661418,0.22424856,2964.1,2963.0,0.00505825]
[1768993661715,0.9049489,2964.0,2963.0,0.00505825]
[1768993661916,0.9049489,2963.9,2963.0,0.00505825]
[1768993662123,0.9049489,2963.8,2963.0,0.00505825]
[1768993662324,0.22424856,2964.1,2963.0,0.00505825]
[1768993662530,0.90494909,2964.0,2963.0,0.00505825]
[1768993662720,0.90494909,2963.9,2963.0,0.00505825]
[1768993662917,0.90494909,2963.8,2963.0,0.00505825]
[1768993663117,0.22424856,2964.1,2963.0,0.00505825]
[1768993663423,1.21787036,2964.0,2963.0,0.00505825]
[1768993663625,0.90495012,2963.9,2963.0,0.00505825]
[1768993663825,0.90495012,2963.8,2963.0,0.00505825]
[1768993664123,0.22424856,2964.1,2963.0,0.00505825]
[1768993664325,1.21787298,2964.0,2963.0,0.00505825]
[1768993664526,0.90495214,2963.9,2963.0,0.00505825]
[1768993664721,0.90495214,2963.8,2963.0,0.00505825]
[1768993664922,0.22424856,2964.1,2963.0,0.00505825]
[1768993665122,1.21787334,2964.0,2963.0,0.00505825]
[1768993665329,0.90495229,2963.9,2963.0,0.00505825]
[1768993665518,0.90495229,2963.8,2963.0,0.00505825]
[1768993665823,0.22424856,2964.1,2963.0,0.00505825]
[1768993666023,1.21786778,2964.0,2963.0,0.00505825]
[1768993666225,0.90494859,2963.9,2963.0,0.00505825]
[1768993666419,0.90494859,2963.8,2963.0,0.00505825]
[1768993666719,0.22424856,2964.1,2963.0,0.00505825]
[1768993666920,1.21791268,2964.0,2963.0,0.00505825]
[1768993667120,0.90498173,2963.9,2963.0,0.00505825]
[1768993667320,0.90498173,2963.8,2963.0,0.00505825]
[1768993667520,0.22424856,2964.1,2963.0,0.00505825]
[1768993667716,1.21793367,2964.0,2963.0,0.00505825]
[1768993667926,0.90499719,2963.9,2963.0,0.00505825]
[1768993668122,0.90499719,2963.8,2963.0,0.00505825]
[1768993668323,0.22424856,2964.1,2963.0,0.00505825]
[1768993668622,1.21793444,2964.0,2963.0,0.00505825]
[1768993668822,0.90499748,2963.9,2963.0,0.00505825]
[1768993669128,0.90499748,2963.8,2963.0,0.00505825]
[1768993669428,0.22424856,2964.1,2963.0,0.00505825]
[1768993669622,1.21794751,2964.0,2963.0,0.00505825]
[1768993669823,0.90500753,2963.9,2963.0,0.00505825]
[1768993670128,0.90500753,2963.8,2963.0,0.00505825]
[1768993670329,0.22424856,2964.1,2963.0,0.00505825]
[1768993670530,1.21795709,2964.0,2963.0,0.00505825]
[1768993670829,0.90501472,2963.9,2963.0,0.00505825]
[1768993671023,0.90501472,2963.8,2963.0,0.00505825]
[1768993671222,0.22424856,2964.1,2963.0,0.00505825]
[1768993671426,1.2179625,2964.0,2963.0,0.00505825]
[1768993671624,0.90501935,2963.9,2963.0,0.00505825]
[1768993671821,0.90501935,2963.8,2963.0,0.00505825]
[1768993672020,0.22424856,2964.1,2963.0,0.00505825]
[1768993672226,0.9050209,2964.0,2963.0,0.00505825]
[1768993672433,0.00270266,2964.3,2963.2,1.36179783]
[1768993673533,0.00505825,2964.0,2963.2,1.36179783]
[1768993673735,0.00270266,2964.3,2963.2,1.36179783]
[1768993675941,0.00270266,2964.3,2963.3,0.24686414]
[1768993677139,0.23635013,2964.9,2963.3,0.24686414]
[1768993677731,0.00505825,2964.4,2963.3,0.24686414]
[1768993677942,0.00920702,2964.4,2963.3,0.24686414]
[1768993681751,0.22811215,2965.3,2963.7,0.22793964]
[1768993682740,0.2316349,2965.3,2963.7,0.22793964]
[1768993687457,0.2316349,2965.3,2964.0,1.34287333]
[1768993687654,0.22811215,2965.7,2964.1,0.22793964]
[1768993687960,0.22811215,2965.5,2963.6,3.26973317]
[1768993688261,0.22811215,2965.5,2964.6,0.00505825]
[1768993688558,0.230606,2965.5,2964.6,0.00505825]
[1768993690656,0.00505825,2965.3,2964.6,0.00505825]
[1768993692861,0.00505825,2965.3,2964.6,1.11868114]
[1768993699261,0.00505825,2965.3,2964.6,1.350072]
[1768993701574,0.00505825,2965.3,2964.8,1.11362289]
[1768993701772,0.00505825,2965.3,2964.8,1.11666553]
[1768993702474,0.00505825,2965.3,2964.8,0.00304264]
[1768993704973,0.00505825,2965.3,2964.8,0.2344335]
[1768993705184,0.00249385,2965.5,2964.8,1.34805639]
[1768993706272,0.25164978,2966.3,2965.0,1.11362289]
[1768993706478,1.20432747,2966.2,2965.0,1.11362289]
[1768993706679,1.20432747,2966.1,2965.0,1.11362289]
[1768993706878,0.89244715,2966.0,2965.2,1.11362289]
[1768993707079,0.00336063,2965.8,2965.2,1.11362289]
[1768993707278,0.00597282,2965.8,2965.2,1.11362289]
[1768993709180,0.00597282,2965.8,2964.8,1.34805639]
[1768993709377,0.25164978,2965.7,2964.8,0.00304264]
[1768993713785,0.25164978,2965.7,2964.9,1.11362289]
[1768993713980,0.00597282,2965.8,2964.9,1.11362289]
[1768993716882,0.00597282,2965.8,2965.1,1.11362289]
[1768993718089,0.00597282,2965.8,2965.3,1.34501375]
[1768993718282,0.25164978,2966.5,2965.3,1.34501375]
[1768993718483,1.20262564,2966.4,2965.3,1.34501375]
[1768993718786,1.20262564,2966.3,2965.3,1.34501375]
[1768993718987,1.20262564,2966.2,2965.3,1.34501375]
[1768993719288,0.89026442,2966.1,2965.3,1.11362289]
[1768993719490,0.00272021,2966.2,2965.3,1.11362289]
[1768993719694,0.89014913,2966.1,2965.3,1.11362289]
[1768993719883,0.00272021,2966.2,2965.3,1.11362289]
[1768993720084,0.89014913,2966.1,2965.3,1.11362289]
[1768993720286,0.00272021,2966.2,2965.3,1.11362289]
[1768993721694,0.00272021,2966.2,2965.6,1.11362289]
[1768993721895,0.00272021,2966.2,2965.4,1.11362289]
[1768993722591,0.25164978,2966.1,2964.8,1.11666553]
[1768993725194,0.25164978,2966.1,2965.1,1.11362289]
[1768993725693,0.00272021,2966.2,2965.1,1.11362289]
[1768993725892,0.89083438,2966.1,2965.1,1.11362289]
[1768993726093,0.00272021,2966.2,2965.1,1.11362289]
[1768993726392,0.89083521,2966.1,2965.1,1.11362289]
[1768993726593,0.00272021,2966.2,2965.1,1.11362289]
[1768993726793,0.8908468,2966.1,2965.1,1.11362289]
[1768993727090,0.00272021,2966.2,2965.1,1.11362289]
[1768993727293,0.89084699,2966.1,2965.1,1.11362289]
[1768993727495,0.00272021,2966.2,2965.1,1.11362289]
[1768993727698,0.89086993,2966.1,2965.1,1.11362289]
[1768993727992,0.00272021,2966.2,2965.1,1.11362289]
[1768993728200,0.89087195,2966.1,2965.1,1.11362289]
[1768993728393,0.00272021,2966.2,2965.1,1.11362289]
[1768993728695,0.89090681,2966.1,2965.1,1.11362289]
[1768993728992,0.00272021,2966.2,2965.1,1.11362289]
[1768993729198,0.89090736,2966.1,2965.1,1.11362289]
[1768993729400,0.00272021,2966.2,2965.1,1.11362289]